fUSD/lending_fUSD_20240821
["ID","MTS","AMOUNT","RATE_DAILY","PERIOD"]
[335446864,1724237440876,-4379.23,0.00014788,2]
[335446865,1724237440885,-500.0,0.00014788,2]
[335446866,1724237440895,-6541.34,0.00014788,2]
[335446868,1724237440906,-500.0,0.00014788,2]
[335446869,1724237440915,-11439.79,0.00014788,2]
[335446870,1724237440925,-500.0,0.00014788,2]
[335446871,1724237440934,-834.72,0.00014788,2]
[335446872,1724237440945,-500.0,0.00014788,2]
[335446873,1724237440955,-1762.59,0.00014788,2]
[335446874,1724237440965,-500.0,0.00014788,2]
[335446875,1724237440974,-500.0,0.00014788,2]
[335446876,1724237440984,-2504.03,0.00014788,2]
[335446877,1724237440993,-500.0,0.00014788,2]
[335446878,1724237441005,-500.0,0.00014788,2]
[335446879,1724237441015,-1299.14,0.00014788,2]
[335446880,1724237441024,-500.0,0.00014788,2]
[335446881,1724237441034,-500.0,0.00014788,2]
[335446882,1724237441044,-2699.61,0.00014788,2]
[335446883,1724237441054,-1055.42,0.00014788,2]
[335446884,1724237441063,-501.85362507,0.00014788,2]
[335446885,1724237441073,-500.0,0.00014788,2]
[335446886,1724237441083,-500.0,0.00014788,2]
[335446887,1724237441092,-1741.52,0.00014788,2]
[335446888,1724237441102,-500.0,0.00014788,2]
[335446889,1724237441112,-500.0,0.00014788,2]
[335446890,1724237441121,-1645.96,0.00014788,2]
[335446891,1724237441130,-500.0,0.00014788,2]
[335446892,1724237441140,-3308.97,0.00014788,2]
[335446893,1724237441151,-500.0,0.00014788,2]
[335446894,1724237441160,-2817.09063964,0.00014788,2]
[335446895,1724237441171,-201.93936036,0.00014788,2]
[335446896,1724237441181,-386.02992772,0.00014788,2]
[335446897,1724237441190,-29.26071192,0.00014788,2]
[335446898,1724237441201,-470.73928808,0.00014788,2]
[335446899,1724237441211,-1368.05667035,0.00014788,3]
[335446900,1724237441223,-495.55389865,0.00014788,3]
[335446901,1724237441246,-1333.31807868,0.00014788,3]
[335446902,1724237441259,-51405.99046812,0.00014788,3]
[335446903,1724237441269,-500.0,0.00014789,2]
[335446904,1724237441278,-500.0,0.00014789,2]
[335446905,1724237441288,-500.0,0.00014789,2]
[335446906,1724237441297,-500.0,0.00014789,2]
[335446907,1724237441306,-500.0,0.00014789,2]
[335446908,1724237441316,-500.0,0.00014789,2]
[335446909,1724237441324,-500.0,0.00014789,2]
[335446910,1724237441334,-500.0,0.00014789,2]
[335446911,1724237441343,-500.0,0.00014789,2]
[335446912,1724237441353,-500.0,0.00014789,2]
[335446913,1724237441362,-500.0,0.00014789,2]
[335446914,1724237441371,-500.0,0.00014789,2]
[335446915,1724237441381,-500.0,0.00014789,2]
[335446916,1724237441390,-500.0,0.00014789,2]
[335446917,1724237441400,-500.0,0.00014789,2]
[335446918,1724237441409,-500.0,0.00014789,2]
[335446919,1724237441419,-500.0,0.00014789,2]
[335446920,1724237441428,-500.0,0.00014789,2]
[335446921,1724237441437,-500.0,0.00014789,2]
[335446922,1724237441446,-922.0,0.00014789,2]
[335446923,1724237441455,-524.20875831,0.00014789,2]
[335446924,1724237441464,-500.0,0.00014789,2]
[335446925,1724237441473,-500.0,0.00014789,2]
[335446926,1724237441483,-500.0,0.00014789,2]
[335446927,1724237441492,-500.0,0.00014789,2]
[335446928,1724237441503,-500.0,0.00014789,2]
[335446929,1724237441512,-1121.76,0.00014789,2]
[335446930,1724237441521,-562.61700994,0.00014789,2]
[335446931,1724237441530,-4793.08,0.00014789,2]
[335446932,1724237441540,-500.0,0.00014789,2]
[335446933,1724237441549,-500.0,0.00014789,2]
[335446934,1724237441558,-2672.27,0.00014789,2]
[335446935,1724237441567,-2762.68,0.00014789,2]
[335446936,1724237441576,-500.0,0.00014789,2]
[335446937,1724237441586,-1533.55,0.00014789,2]
[335446938,1724237441595,-710.78,0.00014789,2]
[335446939,1724237441604,-500.0,0.00014789,2]
[335446940,1724237441613,-647.8,0.00014789,2]
[335446941,1724237441622,-1452.95,0.00014789,2]
[335446942,1724237441632,-3589.58,0.00014789,2]
[335446943,1724237441641,-416.04076546,0.00014789,2]
[335446944,1724237441653,-83.95923454,0.00014789,2]
[335446945,1724237441662,-722.00447075,0.00014789,2]
[335446946,1724237441684,-1001.80961987,0.00014789,2]
[335446955,1724237443216,-500.0,0.00014779,2]
[335446956,1724237443226,-102.56499997,0.00014779,2]
[335446957,1724237443250,-397.43500003,0.00014779,2]
[335446958,1724237443262,-777.82563997,0.00014789,2]
[335446959,1724237443274,-937.79026941,0.00014789,2]
[335446960,1724237443283,-500.0,0.00014789,2]
[335446961,1724237443293,-58.20973059,0.00014789,2]
[335446962,1724237443304,-441.79026941,0.00014789,2]
[335446963,1724237443313,-259.87639759,0.00014789,2]
[335446978,1724237444570,-1006.62630079,0.00014789,2]
[335446979,1724237444582,-253.96730162,0.00014789,2]
[335446980,1724237444591,-98.7606948,0.00014789,2]
[335446981,1724237444606,-513.18500005,0.00014789,2]
[335446982,1724237444617,-177.44430515,0.00014789,2]
[335446983,1724237444627,-500.0,0.00014789,2]
[335446984,1724237444636,-500.0,0.00014789,2]
[335446985,1724237444645,-500.0,0.00014789,2]
[335446986,1724237444654,-834.52,0.00014789,2]
[335446987,1724237444663,-500.0,0.00014789,2]
[335446988,1724237444673,-500.0,0.00014789,2]
[335446989,1724237444682,-504.29,0.00014789,2]
[335446990,1724237444692,-500.0,0.00014789,2]
[335446991,1724237444701,-1518.56,0.00014789,2]
[335446992,1724237444710,-500.0,0.00014789,2]
[335446993,1724237444719,-500.0,0.00014789,2]
[335446994,1724237444729,-500.0,0.00014789,2]
[335446995,1724237444738,-533.72399599,0.00014789,2]
[335446996,1724237444748,-412.34703352,0.00014789,2]
[335446997,1724237444761,-500.0,0.00014789,2]
[335446998,1724237444776,-500.0,0.00014789,2]
[335446999,1724237444785,-500.0,0.00014789,2]
[335447000,1724237444795,-500.0,0.00014789,2]
[335447001,1724237444805,-500.0,0.00014789,2]
[335447002,1724237444814,-500.0,0.00014789,2]
[335447003,1724237444823,-500.0,0.00014789,2]
[335447004,1724237444833,-500.0,0.00014789,2]
[335447005,1724237444842,-500.0,0.00014789,2]
[335447006,1724237444852,-500.0,0.00014789,2]
[335447007,1724237444863,-500.0,0.00014789,2]
[335447008,1724237444874,-500.0,0.00014789,2]
[335447009,1724237444884,-500.0,0.00014789,2]
[335447010,1724237444893,-500.0,0.00014789,2]
[335447011,1724237444903,-362.74645827,0.00014789,2]
[335447012,1724237445112,-289.51354173,0.00014789,2]
[335447013,1724237445122,-268.3331002,0.00014789,2]
[335447014,1724237445135,-264.02132059,0.00014789,2]
[335447015,1724237445145,-396.16867941,0.00014789,2]
[335447016,1724237445158,-28.76616225,0.00014789,2]
[335447017,1724237445169,-548.68914803,0.00014789,2]
[335447018,1724237445179,-543.8904456,0.00014789,2]
[335447019,1724237445190,-500.0,0.00014789,2]
[335447020,1724237445201,-500.0,0.00014789,2]
[335447021,1724237445212,-83.10848059,0.00014789,2]
[335447022,1724237445224,-466.15151941,0.00014789,2]
[335447023,1724237445235,-517.85710085,0.00014789,2]
[335447024,1724237445245,-417.99137954,0.00014789,2]
[335447025,1724237445261,-82.00862046,0.00014789,2]
[335447026,1724237445277,-500.0,0.00014789,2]
[335447027,1724237445287,-500.0,0.00014789,2]
[335447028,1724237445297,-500.0,0.00014789,2]
[335447029,1724237445307,-500.0,0.00014789,2]
[335447030,1724237445316,-405.42754273,0.00014789,2]
[335447031,1724237445325,-327.82600187,0.00014789,2]
[335447066,1724237588451,160.39,0.00010959,2]
[335447068,1724237683712,1050.0,0.0001,2]
[335447079,1724238029993,156.25,0.00010959,2]
[335447113,1724238631916,-348.89,0.00011477,2]
[335447115,1724238631926,-1100.0,0.00012,2]
[335447117,1724238631935,-185.00937477,0.00013001,2]
[335447119,1724238631945,-156.27131137,0.00013001,2]
[335447121,1724238631954,-155.0,0.00013042,2]
[335447122,1724238631963,-155.0,0.00013292,2]
[335447123,1724238631973,-169.79,0.00013348,2]
[335447124,1724238631983,-238.5,0.00013486,2]
[335447125,1724238631991,-746.62968386,0.00013676,2]
[335447126,1724238632003,-253.37031614,0.00013676,2]
[335447127,1724238632012,-196.66675686,0.00013741,2]
[335447128,1724238632027,-152.22324314,0.00013741,2]
[335447129,1724238632037,-300.0,0.00013849,2]
[335447130,1724238632046,-2969.81786328,0.0001385,2]
[335447131,1724238632057,-2481.25213672,0.0001385,2]
[335447132,1724238632067,-155.97,0.00013856,2]
[335447133,1724238632076,-531.18278664,0.00013861,2]
[335447134,1724238632086,-150.0,0.00014221,2]
[335447135,1724238632095,-12293.22307727,0.00014222,2]
[335447136,1724238632107,-472.14322502,0.00014222,2]
[335447137,1724238632118,-3150.20515077,0.00014222,2]
[335447138,1724238632132,-8379.6220261,0.00014222,2]
[335447139,1724238632142,-211.33255648,0.00014224,2]
[335447140,1724238632151,-1070.56185726,0.00014224,2]
[335447141,1724238632160,-88.89841165,0.00014298,2]
[335447142,1724238632171,-85.79099977,0.00014298,2]
[335447143,1724238632180,-500.0,0.00014313,2]
[335447144,1724238632189,-500.0,0.00014313,2]
[335447145,1724238632198,-500.0,0.00014313,2]
[335447146,1724238632208,-500.0,0.00014313,2]
[335447147,1724238632217,-77.9601561,0.00014313,2]
[335447148,1724238632230,-422.0398439,0.00014313,2]
[335447149,1724238632243,-500.0,0.00014313,2]
[335447150,1724238632252,-132.8208767,0.00014313,2]
[335447151,1724238632272,-367.1791233,0.00014313,2]
[335447152,1724238632282,-3095.35,0.00014313,2]
[335447153,1724238632291,-1541.17338475,0.00014313,2]
[335447154,1724238632307,-2750.01661525,0.00014313,2]
[335447155,1724238632318,-7517.22981859,0.00014313,3]
[335447156,1724238632329,-4603.03995499,0.00014313,3]
[335447157,1724238632341,-3068.79679882,0.00014313,3]
[335447158,1724238632352,-15207.38845316,0.00014313,3]
[335447159,1724238632363,-389.84087267,0.00014313,3]
[335447160,1724238632373,-846.08694448,0.00014313,3]
[335447161,1724238632384,-508.11036067,0.00014313,3]
[335447162,1724238632396,-942.04386057,0.00014313,3]
[335447163,1724238632407,-401.44091038,0.00014313,3]
[335447164,1724238632418,-742.22003037,0.00014313,3]
[335447165,1724238632427,-150.67,0.00014313,2]
[335447166,1724238632436,-5966.66503311,0.00014314,3]
[335447167,1724238632447,-1797.61002149,0.00014314,3]
[335447168,1724238632458,-2000.0,0.00014314,3]
[335447169,1724238632468,-1601.38575,0.00014314,3]
[335447170,1724238632483,-1350.04116803,0.00014314,3]
[335447171,1724238632495,-382.31751455,0.00014314,3]
[335447172,1724238632506,-432.000004,0.00014314,3]
[335447173,1724238632517,-290.16336359,0.00014314,3]
[335447174,1724238632527,-889.15149544,0.00014314,3]
[335447175,1724238632539,-1796.97418433,0.00014314,3]
[335447176,1724238632550,-250.0,0.00014314,3]
[335447177,1724238632561,-562.4996314,0.00014314,3]
[335447178,1724238632572,-449.3163988,0.00014314,3]
[335447179,1724238632587,-5649.28327191,0.00014314,3]
[335447180,1724238638053,-316.9035925,0.00013688,2]
[335447181,1724238638063,-965.71673069,0.00014313,2]
[335447182,1724238638073,-408.0085986,0.00014313,2]
[335447183,1724238638084,-1076.7,0.00014313,2]
[335447184,1724238638095,-1154.54016205,0.00014313,2]
[335447185,1724238638106,-930.51620209,0.00014313,2]
[335447186,1724238638117,-5672.63830657,0.00014313,2]
[335447187,1724238638126,-135.69159329,0.00014313,2]
[335447188,1724238638137,-17453.22840671,0.00014313,2]
[335447189,1724238638146,-16602.28958187,0.00014314,3]
[335447190,1724238638160,-577.7598118,0.00014314,3]
[335447191,1724238638171,-716.53939924,0.00014314,3]
[335447192,1724238638182,-1040.45902382,0.00014314,3]
[335447193,1724238638200,-1206.15998892,0.00014314,3]
[335447194,1724238638209,-1293.84001108,0.00014314,3]
[335447195,1724238638220,-301.11415239,0.00014314,3]
[335447196,1724238638246,-496.0,0.00014314,3]
[335447197,1724238638256,-1249.1832568,0.00014314,3]
[335447198,1724238638287,-2709.20962988,0.00014314,3]
[335447200,1724238638298,-1662.12038026,0.00014314,3]
[335447239,1724238640190,-8817.28104593,0.00014314,3]
[335447240,1724238640201,-7082.52976569,0.00014314,3]
[335447241,1724238640212,-250.8552396,0.00014314,3]
[335447242,1724238640240,-351.83444166,0.00014314,3]
[335447243,1724238640608,-1374.95943828,0.00014314,3]
[335447244,1724238640662,-861.50000005,0.00014314,3]
[335447245,1724238640674,-422.95610072,0.00014314,3]
[335447246,1724238640717,-500.0,0.00014314,3]
[335447247,1724238640768,-499.9996419,0.00014314,3]
[335447255,1724238643149,-438.5695808,0.00014314,3]
[335447258,1724238643160,-11013.0,0.00014314,3]
[335447260,1724238643171,-996.40993716,0.00014314,3]
[335447293,1724238644079,-2335.57778295,0.00014314,3]
[335447295,1724238644089,-351.60001831,0.00014314,3]
[335447317,1724238646363,-1187.49489253,0.00014314,3]
[335447318,1724238646452,-5819.73189067,0.00014314,3]
[335447319,1724238646463,-5990.73861914,0.00014314,3]
[335447320,1724238646472,-150.67,0.00014314,2]
[335447321,1724238646482,-150.67,0.00014314,2]
[335447322,1724238646491,-150.67,0.00014314,2]
[335447323,1724238646501,-150.67,0.00014314,2]
[335447324,1724238646510,-150.67,0.00014314,2]
[335447325,1724238646521,-150.67,0.00014314,2]
[335447326,1724238646530,-150.67,0.00014314,2]
[335447327,1724238646539,-150.67,0.00014314,2]
[335447328,1724238646548,-150.67,0.00014314,2]
[335447329,1724238646557,-150.67,0.00014314,2]
[335447330,1724238646567,-150.67,0.00014314,2]
[335447331,1724238646576,-150.67,0.00014314,2]
[335447332,1724238646585,-150.67,0.00014314,2]
[335447333,1724238646594,-150.67,0.00014314,2]
[335447334,1724238646604,-500.0,0.00014321,2]
[335447335,1724238646613,-1155.17,0.00014321,2]
[335447336,1724238646622,-1308.79538086,0.00014321,2]
[335447337,1724238646643,-5962.46616,0.00014321,2]
[335447338,1724238980658,153.06,0.00010959,2]
[335447339,1724239046209,412.28133937,0.00010959,2]
[335447340,1724239050857,291.85317362,0.00010959,2]
[335447341,1724239078343,159.19741528,0.00010959,2]
[335447342,1724239085652,153.9,0.00010739,2]
[335447343,1724239093340,159.19741528,0.00010959,2]
[335447344,1724239107236,286.21979955,0.00010959,2]
[335447345,1724239141861,292.58705873,0.00010959,2]
[335447346,1724239156250,504.971469,0.00010959,2]
[335447350,1724239427038,155.0,0.00010999,2]
[335447351,1724239483283,156.92,0.00010959,2]
[335447354,1724239643674,153.9,0.00010474,2]
[335447355,1724239662571,3228.90922214,0.000108,2]
[335447372,1724239802366,150.0,0.000108,2]
[335447373,1724239802540,150.0,0.000108,2]
[335447375,1724239802733,150.0,0.000108,2]
[335447376,1724239802909,150.0,0.000108,2]
[335447377,1724239803107,150.0,0.000108,2]
[335447378,1724239803296,150.0,0.000108,2]
[335447379,1724239803472,150.0,0.000108,2]
[335447380,1724239803688,150.0,0.000108,2]
[335447381,1724239806226,150.0,0.000108,2]
[335447399,1724239838192,-338.75,0.00011056,2]
[335447400,1724239838202,-7195.2618,0.00011315,2]
[335447401,1724239838211,-3048.45126136,0.00012089,2]
[335447402,1724239838221,-300.0,0.00012548,2]
[335447403,1724239838232,-697.83,0.00012865,2]
[335447404,1724239838241,-258.62,0.00012865,2]
[335447405,1724239838250,-155.0,0.0001294,2]
[335447406,1724239838259,-253.18,0.00012958,2]
[335447407,1724239838269,-797.91,0.00013093,2]
[335447408,1724239838278,-217.52,0.00013098,2]
[335447409,1724239838287,-1156.16,0.00013155,2]
[335447410,1724239838296,-236.85,0.00013204,2]
[335447411,1724239838305,-250.0,0.00013204,2]
[335447412,1724239838314,-23900.0,0.00013211,2]
[335447413,1724239838323,-171.08,0.00013259,2]
[335447414,1724239838332,-267.44,0.00013277,2]
[335447415,1724239838342,-949.74860502,0.00013285,2]
[335447416,1724239838519,-338.75,0.00013319,2]
[335447417,1724239838529,-188.09,0.00013405,2]
[335447418,1724239838539,-1000.0,0.0001358,2]
[335447419,1724239838549,-3328.8,0.00013699,2]
[335447420,1724239838560,-29999.99,0.00013699,2]
[335447421,1724239838569,-1109.6,0.00013699,2]
[335447422,1724239838578,-1084.68,0.00013699,2]
[335447423,1724239838588,-19999.99,0.00013699,2]
[335447424,1724239838598,-420.0,0.00013803,2]
[335447425,1724239838607,-156.4355,0.00014112,2]
[335447426,1724239838617,-1000.0,0.00014112,2]
[335447427,1724239838633,-21865.67413119,0.00014212,2]
[335447428,1724239838643,-49665.97382763,0.00014212,2]
[335447429,1724239838659,-560.42515189,0.00014212,2]
[335464702,1724240319092,11502.0,0.000103,5]
[335464703,1724240319359,11502.0,0.000102,3]
[335464704,1724240319604,224033.0,0.0001,2]
[335464705,1724240361269,150.0,0.00017397,120]
[335464706,1724240361452,150.0,0.00017397,120]
[335464707,1724240361661,217.14415781,0.00017397,120]
[335464708,1724240413341,160.39,0.00010959,2]
[335464730,1724240551363,150.0,0.00017397,120]
[335464731,1724240551541,150.0,0.00017397,120]
[335464732,1724240551758,150.0,0.00017397,120]
[335464733,1724240551957,150.0,0.00017397,120]
[335464734,1724240552169,150.0,0.00017397,120]
[335464735,1724240552347,150.0,0.00017397,120]
[335464736,1724240552758,150.0,0.00017397,120]
[335464737,1724240552963,150.0,0.00017397,120]
[335464738,1724240553719,150.0,0.00017397,120]
[335464739,1724240554114,150.0,0.00017397,120]
[335464752,1724240698614,155.0,0.00010999,2]
[335464755,1724240835159,331.41,0.0001051,2]
[335464765,1724240963417,154.95,0.00010959,2]
[335464789,1724241032239,-337.01913656,0.00011879,2]
[335464790,1724241032251,-3749.97599785,0.00011879,2]
[335464791,1724241032262,-803.2563284,0.00011879,2]
[335464792,1724241032295,-6035.31522719,0.00011879,2]
[335464793,1724241032304,-300.0,0.00011939,2]
[335464794,1724241032314,-300.0,0.00011939,2]
[335464795,1724241032323,-11765.25989665,0.00011999,2]
[335464796,1724241032333,-11765.25989665,0.00011999,2]
[335464797,1724241032343,-1005.52751763,0.00012,7]
[335464798,1724241032353,-500.0,0.00012387,2]
[335464799,1724241032364,-2000.0,0.00012419,2]
[335464800,1724241032374,-5176.25,0.00012437,2]
[335464801,1724241032384,-1500.0,0.0001246,2]
[335464802,1724241032394,-1000.0,0.0001248,2]
[335464803,1724241032403,-150.0,0.00012482,2]
[335464804,1724241032413,-801.48,0.00012486,2]
[335464805,1724241032422,-1298.83,0.00012515,2]
[335464806,1724241032432,-6988.21,0.00012566,2]
[335464807,1724241032442,-250.0,0.00012567,2]
[335464808,1724241032457,-188.1,0.00012592,2]
[335464809,1724241032467,-245.02,0.0001265,2]
[335464810,1724241032477,-3280.42,0.00012683,2]
[335464811,1724241032487,-499.99,0.00012683,2]
[335464812,1724241032497,-331.41,0.00012774,2]
[335464813,1724241032507,-1362.44,0.00012774,2]
[335464814,1724241032516,-286.28,0.00012774,2]
[335464815,1724241032526,-1306.44389609,0.00012788,2]
[335464816,1724241032535,-150.0,0.00012795,2]
[335464817,1724241032544,-215.85,0.00012797,2]
[335464818,1724241032554,-9712.74,0.00012818,2]
[335464820,1724241032564,-180.18,0.00012864,2]
[335464822,1724241032574,-250.0,0.00012926,2]
[335464823,1724241032584,-150.0,0.00012939,2]
[335464825,1724241032593,-5327.5496,0.00012991,2]
[335464827,1724241032602,-155.0,0.00013042,2]
[335464829,1724241032612,-420.0,0.00013107,2]
[335464831,1724241032621,-220.0,0.00013133,2]
[335464833,1724241032630,-173.97,0.00013161,2]
[335464835,1724241032640,-152.77,0.00013241,2]
[335464837,1724241032649,-1000.0,0.00013499,4]
[335464839,1724241032659,-8744.69390815,0.00013698,2]
[335464841,1724241032669,-1608.89,0.00013699,2]
[335464842,1724241032678,-9104.06,0.00013699,2]
[335464843,1724241032687,-357.17,0.00013704,2]
[335464844,1724241032701,-1000.0,0.0001379,2]
[335464846,1724241032711,-1000.0,0.0001385,2]
[335464848,1724241032720,-2343.32801118,0.00013851,2]
[335464850,1724241032729,-155.0,0.00013861,2]
[335464852,1724241032740,-155.0,0.00013861,2]
[335464854,1724241032749,-293.79422022,0.00013861,2]
[335464856,1724241032759,-211.16220297,0.00013861,2]
[335464858,1724241032768,-306.9434504,0.0001387,2]
[335464860,1724241032777,-155.00000007,0.0001387,2]
[335464862,1724241032787,-179.4623719,0.0001387,2]
[335464864,1724241032796,-410.016937,0.0001389,2]
[335464866,1724241032805,-1000.0,0.000139,2]
[335464868,1724241032815,-44732.1481182,0.00013941,2]
[335464869,1724241032824,-1000.0,0.0001395,2]
[335464870,1724241032834,-531.59072155,0.00013971,2]
[335464871,1724241032844,-38863.00517538,0.00014,2]
[335464872,1724241032854,-1000.0,0.00014,2]
[335464873,1724241032863,-2972.6467,0.00014012,2]
[335464874,1724241032872,-4407.7449,0.00014012,2]
[335464875,1724241032882,-1263.0163,0.00014012,2]
[335464876,1724241032891,-454.1136,0.00014012,2]
[335464877,1724241032900,-1000.0,0.00014012,2]
[335464878,1724241032910,-2500.0,0.00014012,2]
[335464879,1724241032920,-98732.1017,0.00014012,2]
[335464880,1724241033081,-1000.0,0.00014041,2]
[335464881,1724241033092,-1000.0,0.0001405,2]
[335464882,1724241033101,-44732.14811813,0.00014051,2]
[335464883,1724241033111,-1532.18805683,0.000141,2]
[335464884,1724241033120,-488.17,0.00014101,3]
[335464885,1724241033131,-244.09,0.00014101,3]
[335464886,1724241033140,-732.28,0.00014101,3]
[335464887,1724241033150,-395.9054578,0.00014102,2]
[335464888,1724241033160,-3525.15301012,0.00014102,3]
[335464889,1724241033169,-500.0,0.00014111,2]
[335464890,1724241033179,-356.92066142,0.00014111,2]
[335464891,1724241033188,-4112.39,0.00014111,2]
[335464892,1724241033197,-500.0,0.00014111,2]
[335464893,1724241033207,-16856.05,0.00014111,2]
[335464894,1724241033216,-500.0,0.00014111,2]
[335464895,1724241033226,-500.0,0.00014111,2]
[335464896,1724241033236,-500.0,0.00014111,2]
[335464897,1724241033247,-1064.63,0.00014111,2]
[335464898,1724241033257,-6996.39,0.00014111,2]
[335464899,1724241033267,-9259.62,0.00014111,2]
[335464900,1724241033277,-500.0,0.00014111,2]
[335464901,1724241033287,-503.4882206,0.00014111,2]
[335464902,1724241033297,-2846.22,0.00014111,2]
[335464903,1724241033307,-500.0,0.00014111,2]
[335464904,1724241033318,-500.0,0.00014111,2]
[335464905,1724241033327,-500.0,0.00014111,2]
[335464906,1724241033337,-500.0,0.00014111,2]
[335464907,1724241033346,-500.0,0.00014111,2]
[335464908,1724241033356,-500.0,0.00014111,2]
[335464909,1724241033365,-500.0,0.00014111,2]
[335464910,1724241033375,-500.0,0.00014111,2]
[335464911,1724241033385,-500.0,0.00014111,2]
[335464912,1724241033395,-500.0,0.00014111,2]
[335464913,1724241033405,-500.0,0.00014111,2]
[335464914,1724241033415,-500.0,0.00014111,2]
[335464915,1724241033425,-2275.64,0.00014111,2]
[335464916,1724241033434,-5585.54,0.00014111,2]
[335464917,1724241033445,-500.0,0.00014111,2]
[335464918,1724241033455,-500.0,0.00014111,2]
[335464919,1724241033466,-1258.96,0.00014111,2]
[335464920,1724241033477,-500.0,0.00014111,2]
[335464921,1724241033487,-500.0,0.00014111,2]
[335464922,1724241033497,-3260.92,0.00014111,2]
[335464923,1724241033507,-500.0,0.00014111,2]
[335464924,1724241033516,-500.0,0.00014111,2]
[335464925,1724241033526,-1000.0,0.00014112,2]
[335464926,1724241033536,-93096.89007066,0.00014112,2]
[335464927,1724241033554,-653.26372546,0.00014112,2]
[335464928,1724241033567,-4289.95371302,0.00014112,2]
[335464929,1724241033593,-41460.56809086,0.00014112,2]
[335464930,1724241033603,-1532.18805679,0.00014118,2]
[335464931,1724241033612,-272.6122,0.00014124,2]
[335464932,1724241033622,-1532.18805679,0.00014135,2]
[335464933,1724241033631,-17625.7650506,0.00014144,3]
[335464934,1724241033641,-2.30426833,0.00014144,2]
[335464936,1724241038275,-171.66,0.00013202,2]
[335464937,1724241038284,-137.07315157,0.0001387,2]
[335464938,1724241038427,-179.94491544,0.0001387,2]
[335464939,1724241038436,-479.80640473,0.00014111,2]
[335464940,1724241038447,-2354.38359527,0.00014111,2]
[335464941,1724241038456,-228.88136463,0.00014111,2]
[335464942,1724241038543,-302.24297607,0.00014111,2]
[335464943,1724241038553,-500.0,0.00014111,2]
[335464944,1724241038564,-500.0,0.00014111,2]
[335464945,1724241038573,-465.98422402,0.00014111,2]
[335464946,1724241038582,-500.0,0.00014111,2]
[335464947,1724241038592,-500.0,0.00014111,2]
[335464948,1724241038601,-500.0,0.00014111,2]
[335464949,1724241038610,-500.0,0.00014111,2]
[335464950,1724241038620,-500.0,0.00014111,2]
[335464951,1724241038629,-500.0,0.00014111,2]
[335464952,1724241038638,-500.0,0.00014111,2]
[335464953,1724241038647,-500.0,0.00014111,2]
[335464954,1724241038656,-385.34220607,0.00014111,2]
[335464955,1724241038665,-551.91256966,0.00014111,2]
[335464956,1724241038674,-500.0,0.00014111,2]
[335464957,1724241038683,-500.0,0.00014111,2]
[335464958,1724241038692,-500.0,0.00014111,2]
[335464959,1724241038702,-500.0,0.00014111,2]
[335464961,1724241038712,-148.51573167,0.00014144,2]
[335464962,1724241038722,-12338.0355354,0.00014145,3]
[335464963,1724241038731,-1398.81772478,0.00014153,2]
[335464964,1724241038747,-133.37033201,0.00014153,2]
[335464965,1724241038757,-7195.84,0.00014154,2]
[335464968,1724241038767,-994.02366799,0.00014154,2]
[335464971,1724241038778,-328.41023746,0.00014154,2]
[335464973,1724241038789,-1279.0632548,0.00014154,2]
[335464975,1724241038800,-3962.55749776,0.00014154,2]
[335464977,1724241038811,-2497.15239399,0.00014154,2]
[335465157,1724241040492,-13904.112948,0.00014154,2]
[335465159,1724241040502,-5612.34,0.00014154,2]
[335465161,1724241040511,-6645.64,0.00014154,2]
[335465163,1724241040521,-2571.95,0.00014154,2]